{"text_format":"2","workbook":"xlsx","n_sheets":3,"sheets":["FICHA DE INSCRIÇÃO 1","FICHA DE INSCRIÇÃO 2","FICHA DE INSCRIÇÃO 3"],"not_rendered":{"charts":0,"images":1,"macros":0,"external_links":0,"defined_names":1,"comments":0,"pivot_tables":0},"unopened":[],"bounds":{"document_bytes":16777216,"sheet_cells":100000,"run_cost":"one","rows_first":2000,"rows_last":500,"rows_between":2000,"halvings":0,"cell_chars":16384,"cell_head_chars":4096},"cells_cut":0,"cells_raw":0,"read":"whole","date_system":"1900"}

{"sheet":"FICHA DE INSCRIÇÃO 1","index":0,"n_rows":25,"n_cols":3,"rows_kept":25,"cut":false,"hidden":false,"merged":[[0,1,0,3],[11,2,11,3],[4,2,4,3],[22,0,22,3],[6,0,7,0],[15,0,16,0],[15,1,16,1],[17,0,18,0],[20,0,20,3],[18,2,18,3],[2,1,2,3]]}
[null,"FICHA DE INSCRIÇÃO EM CURSO"]
[]
["TÍTULO DO CURSO:"]
[]
[null,"DADOS DA EMPRESA","DADOS DO PARTICIPANTE 1"]
["Nome/Razão Social:",null,"Nome Completo:"]
["Endereço c/ CEP:",null,"Endereço:"]
[null,null,"Função:"]
["CPF / CNPJ:",null,"Escolaridade:"]
["Insc. Estadual:",null,"Telefone:"]
["Insc. Municipal:",null,"E-Mail:"]
["Pessoa de Contato:",null,"DADOS DO PARTICIPANTE 2"]
["Cargo:",null,"Nome Completo:"]
["Telefones:",null,"Endereço:"]
["E-mail:",null,"Função:"]
["Como ficou sabendo deste evento?",null,"Escolaridade:"]
[null,null,"Telefone:"]
["Observações",null,"E-Mail:"]
[null,null,"Caso tenha mais de dois participantes vá para próxima planilha ou clique aqui!"]
["Forma de Pagamento:"]
["INFORMAÇÕES ADICIONAIS"]
["No valor está incluso: material didático, coffee break e certificado de participação/aprovação;"]
["As inscrições serão confirmadas por e-mail e somente serão efetivadas após a comprovação do pagamento do valor da inscrição. Solicitamos enviar o comprovante de depósito para sinprocimba@fieb.org.br, com cópia para relacionamento.ba@sinprocim.com.br;"]
["Em caso de desistência do participante, o valor só será devolvido se informado ao SINPROCIM-BA, por escrito, no mínimo 05 (cinco) dias antes do evento;"]
["O SINPROCIM-BA reserva-se o direito de adiar ou cancelar o curso caso não tenha número suficiente de inscritos, sendo que os valores pagos serão devolvidos."]

{"sheet":"FICHA DE INSCRIÇÃO 2","index":1,"n_rows":25,"n_cols":3,"rows_kept":25,"cut":false,"hidden":false,"merged":[[0,1,0,3],[4,2,4,3],[6,0,7,0],[11,2,11,3],[15,0,16,0],[15,1,16,1],[17,0,18,0],[18,2,18,3],[20,0,20,3],[2,1,2,3],[22,0,22,3]]}
[null,"FICHA DE INSCRIÇÃO EM CURSO"]
[]
["TÍTULO DO CURSO:",{"$f":"'FICHA DE INSCRIÇÃO 1'!$B$3:$D$3","v":0}]
[]
[null,"DADOS DA EMPRESA","DADOS DO PARTICIPANTE 1"]
["Nome/Razão Social:",{"$f":"'FICHA DE INSCRIÇÃO 1'!B6","v":0},"Nome Completo:"]
["Endereço c/ CEP:",{"$f":"'FICHA DE INSCRIÇÃO 1'!B7","v":0},"Endereço:"]
[null,{"$f":"'FICHA DE INSCRIÇÃO 1'!B8","v":0},"Função:"]
["CPF / CNPJ:",{"$f":"'FICHA DE INSCRIÇÃO 1'!B9","v":0},"Escolaridade:"]
["Insc. Estadual:",{"$f":"'FICHA DE INSCRIÇÃO 1'!B10","v":0},"Telefone:"]
["Insc. Municipal:",{"$f":"'FICHA DE INSCRIÇÃO 1'!B11","v":0},"E-Mail:"]
["Pessoa de Contato:",{"$f":"'FICHA DE INSCRIÇÃO 1'!B12","v":0},"DADOS DO PARTICIPANTE 2"]
["Cargo:",{"$f":"'FICHA DE INSCRIÇÃO 1'!B13","v":0},"Nome Completo:"]
["Telefones:",{"$f":"'FICHA DE INSCRIÇÃO 1'!B14","v":0},"Endereço:"]
["E-mail:",{"$f":"'FICHA DE INSCRIÇÃO 1'!B15","v":0},"Função:"]
["Como ficou sabendo deste evento?",null,"Escolaridade:"]
[null,null,"Telefone:"]
["Observações",{"$f":"'FICHA DE INSCRIÇÃO 1'!B18","v":0},"E-Mail:"]
[null,{"$f":"'FICHA DE INSCRIÇÃO 1'!B19","v":0},"Caso tenha mais participantes vá para próxima planilha ou clique aqui!"]
["Forma de Pagamento:"]
["INFORMAÇÕES ADICIONAIS"]
["No valor está incluso: material didático, coffee break e certificado de participação/aprovação;"]
["As inscrições serão confirmadas por e-mail e somente serão efetivadas após a comprovação do pagamento do valor da inscrição. Solicitamos enviar o comprovante de depósito para sinprocimba@fieb.org.br, com cópia para relacionamento.ba@sinprocim.com.br;"]
["Em caso de desistência do participante, o valor só será devolvido se informado ao SINPROCIM-BA, por escrito, no mínimo 05 (cinco) dias antes do evento;"]
["O SINPROCIM-BA reserva-se o direito de adiar ou cancelar o curso caso não tenha número suficiente de inscritos, sendo que os valores pagos serão devolvidos."]

{"sheet":"FICHA DE INSCRIÇÃO 3","index":2,"n_rows":25,"n_cols":3,"rows_kept":25,"cut":false,"hidden":false,"merged":[[17,0,18,0],[18,2,18,3],[20,0,20,3],[22,0,22,3],[0,1,0,3],[2,1,2,3],[4,2,4,3],[6,0,7,0],[11,2,11,3],[15,0,16,0],[15,1,16,1]]}
[null,"FICHA DE INSCRIÇÃO EM CURSO"]
[]
["TÍTULO DO CURSO:",{"$f":"'FICHA DE INSCRIÇÃO 1'!$B$3:$D$3","v":0}]
[]
[null,"DADOS DA EMPRESA","DADOS DO PARTICIPANTE 1"]
["Nome/Razão Social:",{"$f":"'FICHA DE INSCRIÇÃO 1'!B6","v":0},"Nome Completo:"]
["Endereço c/ CEP:",{"$f":"'FICHA DE INSCRIÇÃO 1'!B7","v":0},"Endereço:"]
[null,{"$f":"'FICHA DE INSCRIÇÃO 1'!B8","v":0},"Função:"]
["CPF / CNPJ:",{"$f":"'FICHA DE INSCRIÇÃO 1'!B9","v":0},"Escolaridade:"]
["Insc. Estadual:",{"$f":"'FICHA DE INSCRIÇÃO 1'!B10","v":0},"Telefone:"]
["Insc. Municipal:",{"$f":"'FICHA DE INSCRIÇÃO 1'!B11","v":0},"E-Mail:"]
["Pessoa de Contato:",{"$f":"'FICHA DE INSCRIÇÃO 1'!B12","v":0},"DADOS DO PARTICIPANTE 2"]
["Cargo:",{"$f":"'FICHA DE INSCRIÇÃO 1'!B13","v":0},"Nome Completo:"]
["Telefones:",{"$f":"'FICHA DE INSCRIÇÃO 1'!B14","v":0},"Endereço:"]
["E-mail:",{"$f":"'FICHA DE INSCRIÇÃO 1'!B15","v":0},"Função:"]
["Como ficou sabendo deste evento?",null,"Escolaridade:"]
[null,null,"Telefone:"]
["Observações",{"$f":"'FICHA DE INSCRIÇÃO 1'!B18","v":0},"E-Mail:"]
[null,{"$f":"'FICHA DE INSCRIÇÃO 1'!B19","v":0},"Caso tenha mais participantes vá para próxima planilha ou clique aqui!"]
["Forma de Pagamento:"]
["INFORMAÇÕES ADICIONAIS"]
["No valor está incluso: material didático, coffee break e certificado de participação/aprovação;"]
["As inscrições serão confirmadas por e-mail e somente serão efetivadas após a comprovação do pagamento do valor da inscrição. Solicitamos enviar o comprovante de depósito para sinprocimba@fieb.org.br, com cópia para relacionamento.ba@sinprocim.com.br;"]
["Em caso de desistência do participante, o valor só será devolvido se informado ao SINPROCIM-BA, por escrito, no mínimo 05 (cinco) dias antes do evento;"]
["O SINPROCIM-BA reserva-se o direito de adiar ou cancelar o curso caso não tenha número suficiente de inscritos, sendo que os valores pagos serão devolvidos."]